fUST/lending_fUST_20250606
["ID","MTS","AMOUNT","RATE_DAILY","PERIOD"]
[364688637,1749206830122,-208.638328,0.00019394,2]
[364688638,1749206830144,-150.0,0.00019409,2]
[364688639,1749206830165,-2.15306803,0.00019473,2]
[364688640,1749206833091,-464.96551892,0.00019473,2]
[364688641,1749206836094,-404.83509907,0.000189,2]
[364688642,1749206836117,-2194.57513265,0.00019473,2]
[364688643,1749206836141,-22.15188653,0.00019833,2]
[364688644,1749206837115,-184.85660047,0.00019833,2]
[364688645,1749206837138,-466.78632,0.00019899,2]
[364688646,1749206837160,-204.70009622,0.00019966,2]
[364688647,1749206837181,-152.10023188,0.00019991,2]
[364688648,1749206848082,-451.54342702,0.00019991,2]
[364688649,1749206848103,-198.1472088,0.00020154,2]
[364688650,1749206848123,-246.011056,0.00020187,2]
[364688651,1749206848148,-500.0,0.00020583,2]
[364688652,1749206848172,-300.0,0.00020813,2]
[364688653,1749206848192,-300.0,0.00020814,2]
[364688654,1749206848213,-500.0,0.00020814,2]
[364688655,1749206848371,-500.0,0.00020814,2]
[364688656,1749206848394,-597.85320696,0.00020814,2]
[364688657,1749206848413,-500.0,0.00020814,2]
[364688658,1749206848434,-500.0,0.00020814,2]
[364688659,1749206848454,-624.85139549,0.00020814,2]
[364688660,1749206848475,-500.0,0.00020814,2]
[364688661,1749206848496,-500.0,0.00020814,2]
[364688662,1749206848517,-500.0,0.00020814,2]
[364688663,1749206848538,-249.07926073,0.00020814,2]
[364688664,1749206850177,-145.90820673,0.00020814,2]
[364688665,1749206850199,-500.0,0.00020814,2]
[364688666,1749206850221,-500.0,0.00020814,2]
[364688667,1749206850243,-500.0,0.00020814,2]
[364688668,1749206850266,-500.0,0.00020814,2]
[364688669,1749206850289,-500.0,0.00020814,2]
[364688670,1749206850310,-500.0,0.00020814,2]
[364688671,1749206850332,-500.0,0.00020814,2]
[364688672,1749206850356,-194.21040899,0.00020814,2]
[364688673,1749206850378,-500.0,0.00020814,2]
[364688674,1749206850401,-500.0,0.00020814,2]
[364688675,1749206850423,-495.87195687,0.00020814,2]
[364688676,1749206850445,-500.0,0.00020814,2]
[364688677,1749206850466,-401.92741981,0.00020814,2]
[364688678,1749206850488,-500.0,0.00020814,2]
[364688679,1749206850509,-500.0,0.00020814,2]
[364688680,1749206850531,-650.14757379,0.00020814,2]
[364688681,1749206850551,-156.89515289,0.00020815,2]
[364688682,1749206850573,-8311.38760563,0.00020815,2]
[364688683,1749206853084,-203.7088825,0.00020815,2]
[364688684,1749206910940,157.0,0.00016438,3]
[364688685,1749206945113,-269.89006605,0.000189,2]
[364688809,1749207043071,-200.19863055,0.00020191,2]
[364688810,1749207043081,-500.0,0.00020583,2]
[364688811,1749207043091,-3569.9875915,0.00020815,2]
[364688812,1749207043101,-569.0,0.00020826,2]
[364688813,1749207043112,-332.87466187,0.00020827,2]
[364688814,1749207043121,-405.57195264,0.00020827,2]
[364688815,1749207043131,-243.80115656,0.00020827,2]
[364688816,1749207043141,-211.32526887,0.00020827,2]
[364688817,1749207043151,-300.0,0.00020827,2]
[364688818,1749207043160,-24900.0,0.00020828,2]
[364688819,1749207043169,-150.0,0.0002125,2]
[364688820,1749207043179,-500.0,0.00021679,2]
[364688822,1749207043188,-163.289,0.00021679,2]
[364688823,1749207043197,-249.02394495,0.000219,6]
[364688824,1749207043208,-8650.75984,0.00021916,2]
[364688825,1749207043218,-440.0,0.00021917,2]
[364688826,1749207043228,-339.81250261,0.00021917,2]
[364688827,1749207043237,-431.86204897,0.00021917,2]
[364688828,1749207043250,-440.0,0.00021917,2]
[364688829,1749207043259,-430.0,0.00021917,2]
[364688830,1749207043269,-437.56840292,0.00021917,2]
[364688831,1749207043279,-440.0,0.00021917,2]
[364688832,1749207043288,-236.15,0.00021917,2]
[364688833,1749207043298,-440.0,0.00021917,2]
[364688834,1749207043308,-430.0,0.00021917,2]
[364688835,1749207043318,-199.24480459,0.00021917,2]
[364688836,1749207043327,-430.0,0.00021917,2]
[364688837,1749207043338,-430.0,0.00021917,2]
[364688838,1749207043347,-440.0,0.00021917,2]
[364688839,1749207043357,-430.0,0.00021917,2]
[364688840,1749207043367,-430.0,0.00021917,2]
[364688841,1749207043377,-94.94786219,0.00021917,2]
[364688842,1749207043401,-339.91804439,0.00021917,2]
[364688843,1749207043411,-11.62536741,0.00021917,2]
[364688844,1749207043423,-428.37463259,0.00021917,2]
[364688845,1749207043432,-275.05136514,0.00021917,2]
[364688846,1749207043442,-440.0,0.00021917,2]
[364688847,1749207043451,-2085.84,0.00021917,2]
[364688848,1749207043461,-440.0,0.00021917,2]
[364688849,1749207043471,-440.0,0.00021917,2]
[364688850,1749207043480,-96.94536666,0.00021917,2]
[364688851,1749207043497,-346.64463334,0.00021917,2]
[364688852,1749207043506,-173.18686211,0.00021917,2]
[364688854,1749207045606,-266.81313789,0.00021917,2]
[364688855,1749207045618,-138.15515291,0.00021917,2]
[364688862,1749207046242,-310.92320749,0.00021917,2]
[364688863,1749207046255,-186.84679251,0.00021917,2]
[364688864,1749207053644,189.00308907,0.00018435,2]
[364688865,1749207053668,65.16691093,0.00018435,2]
[364688866,1749207054052,93.63123067,0.00019313,2]
[364688869,1749207138086,-236.52026171,0.00018083,2]
[364688870,1749207139700,-13.22973829,0.00018083,2]
[364688871,1749207220903,-184.82733765,0.00018044,2]
[364688872,1749207223556,-63.65266235,0.00018044,2]
[364688873,1749207225106,161.0,0.00016438,3]
[364688875,1749207305243,-173.0,0.00018069,2]
[364688876,1749207306821,-76.13,0.00018069,2]
[364688877,1749207309825,-252.31759499,0.00018385,2]
[364688878,1749207311922,-11.07662465,0.00018385,2]
[364688881,1749207440144,256.388724,0.00013699,2]
[364688882,1749207528305,10000.0,0.00018,2]
[364688883,1749207539863,160.0,0.00016438,3]
[364688884,1749207545887,10000.0,0.00018,2]
[364688894,1749207605267,-249.78,0.0001806,2]
[364688895,1749207605295,-44.89666065,0.0001806,2]
[364688896,1749207606961,-224.536575,0.0001806,2]
[364688897,1749207609099,-230.56676435,0.0001806,2]
[364688898,1749207610240,295.83140057,0.00017951,2]
[364688899,1749207654128,185.429647,0.0001783,2]
[364688900,1749207691636,192.62261018,0.00017805,2]
[364688901,1749207691659,1959.52912382,0.00017805,2]
[364688904,1749207884070,1686.8714221,0.00017691,2]
[364688905,1749207912503,169.93128779,0.00017581,2]
[364688906,1749207949988,21704.83116629,0.00017703,2]
[364688907,1749207950010,17378.75106421,0.00017703,2]
[364688908,1749207954103,-254.24,0.00018042,2]
[364688909,1749207954125,-108.68623288,0.00018496,2]
[364688910,1749208009088,-217.03200645,0.00018028,2]
[364688911,1749208026103,-33.96799355,0.00018028,2]
[364688912,1749208026135,-66.60898528,0.00018496,2]
[364688913,1749208026176,-433.51272409,0.00018504,2]
[364688914,1749208033087,-171.7002666,0.00018504,2]
[364688915,1749208034076,-594.78700931,0.00018504,2]
[364688916,1749208034096,-20.58219754,0.00018504,2]
[364688917,1749208034124,-279.41780246,0.00018504,2]
[364688918,1749208034145,-300.0,0.00018504,2]
[364688919,1749208034165,-271.46047696,0.00018505,2]
[364688920,1749208039095,-28.53952304,0.00018505,2]
[364688921,1749208039117,-300.0,0.00018505,2]
[364688922,1749208039140,-300.0,0.00018505,2]
[364688923,1749208039164,-300.0,0.00018505,2]
[364688924,1749208039191,-471.06573156,0.00018506,2]
[364688925,1749208041134,-5245.15635265,0.00018506,2]
[364688926,1749208049115,-992.64064018,0.00018506,2]
[364688928,1749208145443,-247.81,0.00018036,2]
[364688929,1749208145465,-3291.13727561,0.00018506,2]
[364688930,1749208145487,-180.02537349,0.00018799,2]
[364688931,1749208145508,-495.61,0.00018895,2]
[364688932,1749208145529,-300.0,0.00018897,2]
[364688933,1749208145549,-500.0,0.00018898,2]
[364688934,1749208145569,-354.5615246,0.00018898,2]
[364688935,1749208148126,-160.32494366,0.00018898,2]
[364688936,1749208148148,-12.34460326,0.00018898,2]
[364688937,1749208158153,-539.14539017,0.00018898,2]
[364688938,1749208158173,-500.0,0.00018898,2]
[364688939,1749208158195,-500.0,0.00018898,2]
[364688940,1749208158216,-500.0,0.00018898,2]
[364688941,1749208158237,-500.0,0.00018898,2]
[364688942,1749208158257,-436.12574631,0.00018898,2]
[364688943,1749208158277,-500.0,0.00018898,2]
[364688944,1749208158296,-186.67474246,0.00018898,2]
[364688945,1749208158321,-500.0,0.00018898,2]
[364688946,1749208158341,-500.0,0.00018898,2]
[364688947,1749208158360,-361.64909145,0.00018898,2]
[364688948,1749208158381,-512.19003092,0.00018898,2]
[364688949,1749208158401,-500.0,0.00018898,2]
[364688950,1749208158427,-500.0,0.00018898,2]
[364688951,1749208158450,-500.0,0.00018898,2]
[364688952,1749208158474,-500.0,0.00018898,2]
[364688953,1749208158496,-295.38150556,0.00018898,2]
[364688954,1749208162182,-204.61849444,0.00018898,2]
[364688955,1749208162202,-500.0,0.00018898,2]
[364688956,1749208162222,-500.0,0.00018898,2]
[364688957,1749208162329,-500.0,0.00018898,2]
[364688958,1749208162351,-500.0,0.00018898,2]
[364688959,1749208162372,-500.0,0.00018898,2]
[364688960,1749208162390,-200.97289135,0.00018898,2]
[364688961,1749208162411,-264.78274623,0.00018898,2]
[364688962,1749208162429,-500.0,0.00018898,2]
[364688963,1749208162448,-500.0,0.00018898,2]
[364688964,1749208162470,-500.0,0.00018898,2]
[364688965,1749208162499,-500.0,0.00018898,2]
[364688966,1749208162532,-515.50290627,0.00018898,2]
[364688967,1749208162554,-500.0,0.00018898,2]
[364688968,1749208162578,-500.0,0.00018898,2]
[364688969,1749208162600,-500.0,0.00018898,2]
[364688970,1749208162621,-499.38169526,0.00018898,2]
[364688971,1749208162643,-500.0,0.00018898,2]
[364688972,1749208162666,-500.0,0.00018898,2]
[364688973,1749208162690,-500.0,0.00018898,2]
[364688974,1749208162713,-500.0,0.00018898,2]
[364688975,1749208162734,-500.0,0.00018898,2]
[364688976,1749208162757,-500.0,0.00018898,2]
[364688977,1749208162777,-500.0,0.00018898,2]
[364688978,1749208162798,-500.0,0.00018898,2]
[364688979,1749208162820,-362.38934553,0.00018898,2]
[364688980,1749208162845,-500.0,0.00018898,2]
[364688981,1749208162865,-623.97260795,0.00018898,2]
[364688982,1749208162893,-500.0,0.00018898,2]
[364688983,1749208162933,-500.0,0.00018898,2]
[364688984,1749208162974,-500.0,0.00018898,2]
[364688985,1749208163014,-500.0,0.00018898,2]
[364688986,1749208163050,-500.0,0.00018898,2]
[364688987,1749208163087,-500.0,0.00018898,2]
[364688988,1749208163124,-500.0,0.00018898,2]
[364688989,1749208163159,-500.0,0.00018898,2]
[364688990,1749208163192,-500.0,0.00018898,2]
[364688991,1749208163223,-500.0,0.00018898,2]
[364688992,1749208163254,-500.0,0.00018898,2]
[364688993,1749208163285,-500.0,0.00018898,2]
[364688994,1749208163316,-500.0,0.00018898,2]
[364688995,1749208163350,-500.0,0.00018898,2]
[364688996,1749208163382,-500.0,0.00018898,2]
[364688997,1749208163416,-500.0,0.00018898,2]
[364688998,1749208163446,-500.0,0.00018898,2]
[364688999,1749208163478,-500.0,0.00018898,2]
[364689000,1749208163509,-500.0,0.00018898,2]
[364689001,1749208163541,-500.0,0.00018898,2]
[364689002,1749208163571,-500.0,0.00018898,2]
[364689003,1749208163602,-500.0,0.00018898,2]
[364689004,1749208163634,-500.0,0.00018898,2]
[364689005,1749208163664,-500.0,0.00018898,2]
[364689006,1749208163686,-500.0,0.00018898,2]
[364689007,1749208163707,-500.0,0.00018898,2]
[364689008,1749208163865,-500.0,0.00018898,2]
[364689009,1749208163886,-500.0,0.00018898,2]
[364689010,1749208163908,-500.0,0.00018898,2]
[364689011,1749208163929,-500.0,0.00018898,2]
[364689012,1749208163952,-500.0,0.00018898,2]
[364689013,1749208163978,-500.0,0.00018898,2]
[364689014,1749208163999,-500.0,0.00018898,2]
[364689015,1749208164023,-500.0,0.00018898,2]
[364689016,1749208164044,-500.0,0.00018898,2]
[364689017,1749208164066,-500.0,0.00018898,2]
[364689018,1749208164090,-500.0,0.00018898,2]
[364689019,1749208164114,-500.0,0.00018898,2]
[364689020,1749208164138,-500.0,0.00018898,2]
[364689021,1749208164159,-500.0,0.00018898,2]
[364689022,1749208164181,-500.0,0.00018898,2]
[364689023,1749208164202,-500.0,0.00018898,2]
[364689024,1749208164224,-500.0,0.00018898,2]
[364689025,1749208164244,-500.0,0.00018898,2]
[364689026,1749208164266,-202.20153548,0.00018898,2]
[364689027,1749208164288,-500.0,0.00018898,2]
[364689028,1749208164309,-500.0,0.00018898,2]
[364689029,1749208164331,-500.0,0.00018898,2]
[364689030,1749208164352,-500.0,0.00018898,2]
[364689031,1749208164374,-500.0,0.00018898,2]
[364689032,1749208164395,-500.0,0.00018898,2]
[364689033,1749208164421,-500.0,0.00018898,2]
[364689034,1749208164443,-466.91128172,0.00018898,2]
[364689035,1749208164465,-500.0,0.00018898,2]
[364689036,1749208164488,-500.0,0.00018898,2]
[364689037,1749208164510,-490.26548284,0.00018898,2]
[364689038,1749208164533,-500.0,0.00018898,2]
[364689039,1749208164556,-500.0,0.00018898,2]
[364689040,1749208164580,-500.0,0.00018898,2]
[364689041,1749208164602,-404.05655566,0.00018898,2]
[364689042,1749208164624,-26500.42186763,0.00018899,2]
[364689043,1749208164820,-245.98,0.0001805,2]
[364689044,1749208164842,-23125.95750257,0.00018899,2]
[364689045,1749208164862,-500.0,0.000189,2]
[364689046,1749208164883,-1042.02369617,0.000189,2]
[364689047,1749208170187,-491.96,0.00018909,2]
[364689048,1749208170209,-160.0,0.00018952,2]
[364689049,1749208170231,-200.0,0.00018953,10]
[364689050,1749208170252,-345.833721,0.00018953,10]
[364689051,1749208170274,-500.0,0.00018953,2]
[364689052,1749208170295,-500.0,0.00018953,2]
[364689053,1749208170318,-500.0,0.00018953,2]
[364689054,1749208170339,-500.0,0.00018953,2]
[364689055,1749208170360,-500.0,0.00018953,2]
[364689056,1749208170382,-500.0,0.00018953,2]
[364689057,1749208170403,-500.0,0.00018953,2]
[364689058,1749208170426,-500.0,0.00018953,2]
[364689059,1749208170447,-375.81113436,0.00018953,2]
[364689060,1749208170468,-500.0,0.00018953,2]
[364689061,1749208170490,-12380.3573852,0.00018954,2]
[364689062,1749208170511,-500.0,0.00019174,2]
[364689063,1749208170531,-189.625493,0.00019178,2]
[364689064,1749208170558,-5326.4728592,0.000194,2]
[364689065,1749208170584,-5326.47285906,0.000194,2]
[364689066,1749208170612,-5326.47285906,0.000194,2]
[364689067,1749208170633,-500.0,0.00019448,2]
[364689068,1749208170661,-4861.11564418,0.00019521,2]
[364689073,1749208227432,500.0,0.00018898,2]
[364689074,1749208227466,500.0,0.00018898,2]
[364689075,1749208227535,500.0,0.00018898,2]
[364689076,1749208227570,500.0,0.00018898,2]
[364689077,1749208227605,500.0,0.00018898,2]
[364689078,1749208227635,500.0,0.00018898,2]
[364689079,1749208227690,439.32284425,0.00018898,2]
[364689080,1749208227743,500.0,0.00018898,2]
[364689081,1749208227798,500.0,0.00018898,2]
[364689082,1749208227917,500.0,0.00018898,2]
[364689083,1749208227947,500.0,0.00018898,2]
[364689084,1749208228014,500.0,0.00018898,2]
[364689085,1749208230923,20238.17497109,0.00018846,2]
[364689107,1749208232273,-2191.50398952,0.00018846,2]
[364689108,1749208232284,-446.57285285,0.00018846,2]
[364689109,1749208232535,-2023.74818654,0.00018846,2]
[364689110,1749208232545,-177.276557,0.00018935,2]
[364689111,1749208232554,-1200.0,0.0001952,2]
[364689112,1749208232564,-465.35721488,0.00019521,2]
[364689113,1749208232573,-5164.06141033,0.00019521,2]
[364689114,1749208232582,-614.89,0.00019718,3]
[364689115,1749208232592,-5326.47285906,0.00019728,2]
[364689116,1749208232601,-737.94,0.00019769,2]
[364689117,1749208232610,-1229.79,0.00019845,3]
[364689118,1749208232620,-300.0,0.00019854,2]
[364689119,1749208232629,-300.0,0.00019854,2]
[364689120,1749208232638,-300.0,0.00019854,2]
[364689121,1749208232647,-300.0,0.00019854,2]
[364689122,1749208232657,-220.62400476,0.00019855,3]
[364689123,1749208232678,-2923.7,0.00019855,3]
[364689124,1749208232688,-250.0,0.00019857,2]
[364689125,1749208232697,-5326.47285906,0.00019934,2]
[364689126,1749208232707,-307.45,0.00019946,3]
[364689127,1749208232717,-206.119,0.00020106,2]
[364689128,1749208232727,-210.8,0.00020106,2]
[364689129,1749208232737,-210.8,0.00020106,2]
[364689130,1749208232747,-210.8,0.00020106,2]
[364689131,1749208232758,-210.8,0.00020106,2]
[364689132,1749208232768,-210.8,0.00020106,2]
[364689133,1749208232778,-210.8,0.00020106,2]
[364689134,1749208232787,-210.8,0.00020106,2]
[364689135,1749208232797,-210.8,0.00020106,2]
[364689136,1749208232807,-210.8,0.00020106,2]
[364689137,1749208232816,-5326.47285906,0.00020141,2]
[364689138,1749208232826,-420.0,0.00020181,2]
[364689139,1749208232836,-256.388724,0.00020187,2]
[364689140,1749208232845,-153.72,0.00020268,3]
[364689141,1749208232855,-5326.47285906,0.00020348,3]
[364689142,1749208232865,-212.976918,0.00020348,3]
[364689143,1749208232875,-2855.26242607,0.00020398,2]
[364689144,1749208232885,-500.0,0.00020547,2]
[364689145,1749208232894,-315.04936747,0.00020555,3]
[364689148,1749208232904,-842.5625,0.00020555,3]
[364689149,1749208232914,-5326.47285906,0.00020555,3]
[364689151,1749208232924,-1100.0,0.00020583,2]
[364689153,1749208232934,-154.29377,0.00020583,2]
[364689155,1749208232943,-154.880289,0.00020583,2]
[364689157,1749208232953,-151.0,0.00020583,2]
[364689159,1749208232962,-151.0,0.00020583,2]
[364689160,1749208232972,-170.04375,0.00020583,2]
[364689161,1749208232982,-170.04375,0.00020583,2]
[364689162,1749208232991,-151.0,0.00020583,2]
[364689163,1749208233001,-11849.89752062,0.0002059,3]
[364689164,1749208233010,-1236.34,0.000206,2]
[364689165,1749208233021,-2807.12,0.000206,2]
[364689166,1749208233031,-983.93,0.00020628,2]
[364689167,1749208233043,-5326.47285906,0.00020762,3]
[364689168,1749208233053,-500.0,0.00020762,3]
[364689170,1749208233063,-460.31,0.00020959,10]
[364689171,1749208233073,-383.6,0.00020959,10]
[364689172,1749208233083,-5326.47285906,0.00020969,4]
[364689173,1749208233094,-500.0,0.00021036,3]
[364689174,1749208233103,-552.38,0.00021078,10]
[364689175,1749208233113,-1229.78,0.00021088,3]
[364689176,1749208233122,-500.0,0.00021095,3]
[364689177,1749208233132,-151.0,0.00021107,2]
[364689178,1749208233142,-5326.47285906,0.00021176,4]
[364689179,1749208233152,-2459.58,0.00021215,3]
[364689180,1749208233162,-153.85781603,0.00021232,2]
[364689182,1749208233172,-500.0,0.00021309,2]
[364689184,1749208233181,-500.0,0.00021309,2]
[364689186,1749208233191,-500.0,0.00021309,2]
[364689187,1749208233200,-500.0,0.00021309,2]
[364689188,1749208233210,-413.06779405,0.00021309,2]
[364689190,1749208233219,-500.0,0.00021309,2]
[364689191,1749208233229,-500.0,0.00021309,2]
[364689192,1749208233239,-601.14288534,0.0002131,3]
[364689193,1749208233249,-614.9,0.00021316,3]
[364689194,1749208233259,-965.0,0.00021368,2]
[364689195,1749208233268,-5326.47285906,0.00021383,5]
[364689196,1749208233278,-1229.91,0.00021488,2]
[364689197,1749208233291,-319.66,0.00021563,10]
[364689198,1749208233301,-503.90031472,0.00021573,2]
[364689199,1749208233311,-500.0,0.00021573,2]
[364689200,1749208233321,-501.13203067,0.00021573,2]
[364689201,1749208233331,-179.21369916,0.00021573,2]
[364689202,1749208233341,-500.0,0.00021573,2]
[364689203,1749208233351,-500.0,0.00021573,2]
[364689204,1749208233362,-492086.92458202,0.00021589,2]
[364689233,1749208238202,-160.0,0.00019898,2]
[364689235,1749208238212,-222.1535217,0.00019933,2]
[364689237,1749208238222,-235.99695644,0.00019933,2]
[364689239,1749208238231,-362.75363847,0.00019933,2]
[364689241,1749208238241,-390.24333677,0.00019933,2]
[364689243,1749208238250,-500.0,0.00019933,2]
[364689245,1749208238259,-168.38921181,0.00019933,2]
[364689247,1749208238269,-466.77476571,0.00019933,2]
[364689249,1749208238278,-500.0,0.00019933,2]
[364689251,1749208238287,-500.0,0.00019933,2]
[364689253,1749208238297,-500.0,0.00019933,2]
[364689255,1749208238306,-500.0,0.00019933,2]
[364689257,1749208238316,-516.91128172,0.00019933,2]
[364689259,1749208238325,-500.0,0.00019933,2]
[364689261,1749208238335,-500.0,0.00019933,2]
[364689263,1749208238344,-500.0,0.00019933,2]
[364689265,1749208238354,-172.76372519,0.00019933,2]
[364689267,1749208238364,-160.0,0.00021268,2]
[364689269,1749208238374,-197156.13235798,0.00021589,2]
[364689271,1749208238384,-5326.47285906,0.0002159,5]
[364689274,1749208238394,-420.0,0.00021622,2]
[364689277,1749208238415,-420.0,0.00021622,2]
[364689279,1749208238424,-307.44,0.00021638,3]
[364689281,1749208238437,-500.0,0.00021643,4]
[364689283,1749208238447,-1100.0,0.00021679,2]
[364689285,1749208238456,-151.0,0.00021796,2]
[364689287,1749208238466,-151.0,0.00021796,2]
[364689289,1749208238477,-170.04375,0.00021796,2]
[364689291,1749208238487,-170.04375,0.00021796,2]
[364689293,1749208238496,-151.0,0.00021796,2]
[364689295,1749208238506,-5326.47285906,0.00021797,6]
[364689297,1749208238517,-6821.44282735,0.00021817,2]
[364689299,1749208238527,-400.0,0.0002183,2]
[364689301,1749208238537,-461.19,0.00021907,3]
[364689304,1749208238547,-280.15502885,0.00021916,2]
[364689306,1749208238557,-430.4580242,0.00021917,2]
[364689308,1749208238567,-430.65324588,0.00021917,2]
[364689310,1749208238576,-414.39140681,0.00021917,2]
[364689312,1749208238586,-405.1022912,0.00021917,2]
[364689314,1749208238596,-440.0,0.00021917,2]
[364689316,1749208238605,-440.0,0.00021917,2]
[364689318,1749208238615,-440.0,0.00021917,2]
[364689320,1749208238625,-172.56889997,0.00021917,2]
[364689322,1749208238635,-440.0,0.00021917,2]
[364689324,1749208238646,-440.0,0.00021917,2]
[364689326,1749208238655,-440.0,0.00021917,2]
[364689328,1749208238665,-440.0,0.00021917,2]
[364689330,1749208238675,-223.52677334,0.00021917,2]
[364689332,1749208238685,-170.456833,0.00021917,2]
[364689334,1749208238695,-440.0,0.00021917,2]
[364689336,1749208238704,-431.02019153,0.00021917,2]
[364689338,1749208238714,-440.0,0.00021917,2]
[364689340,1749208238723,-440.0,0.00021917,2]
[364689342,1749208238734,-468.6610821,0.00021917,2]
[364689344,1749208238743,-310.0,0.00021917,2]
[364689346,1749208238753,-440.0,0.00021917,2]
[364689348,1749208238763,-433.39389982,0.00021917,2]
[364689350,1749208238772,-440.0,0.00021917,2]
[364689352,1749208238782,-440.29114401,0.00021917,2]
[364689354,1749208238792,-151.0,0.00021917,2]
[364689356,1749208238802,-440.0,0.00021917,2]
[364689358,1749208238811,-440.0,0.00021917,2]
[364689360,1749208238821,-410.0,0.00021917,2]
[364689374,1749208238832,-440.0,0.00021917,2]
[364689377,1749208238955,-440.0,0.00021917,2]
[364689379,1749208238964,-440.0,0.00021917,2]
[364689381,1749208238973,-413.48937036,0.00021917,2]
[364689383,1749208238982,-440.0,0.00021917,2]
[364689385,1749208238995,-413.94152853,0.00021917,2]
[364689387,1749208239005,-154.9768,0.00021917,2]
[364689389,1749208239014,-440.0,0.00021917,2]
[364689391,1749208239024,-224.91033243,0.00021917,2]
[364689393,1749208239033,-446.01848132,0.00021917,2]
[364689395,1749208239044,-430.0,0.00021917,2]
[364689397,1749208239053,-440.0,0.00021917,2]
[364689399,1749208239063,-440.0,0.00021917,2]
[364689401,1749208239073,-440.0,0.00021917,2]
[364689403,1749208239083,-440.0,0.00021917,2]
[364689405,1749208239093,-440.0,0.00021917,2]
[364689408,1749208239103,-304.85327493,0.00021917,2]
[364689410,1749208239113,-440.0,0.00021917,2]
[364689412,1749208239122,-440.0,0.00021917,2]
[364689414,1749208239133,-500.0,0.00021917,2]
[364689416,1749208239143,-408.60366109,0.00021917,2]
[364689418,1749208239152,-440.0,0.00021917,2]
[364689420,1749208239161,-440.0,0.00021917,2]
[364689422,1749208239171,-440.0,0.00021917,2]
[364689424,1749208239180,-450.39544778,0.00021917,2]
[364689426,1749208239189,-440.0,0.00021917,2]
[364689428,1749208239199,-440.0,0.00021917,2]
[364689430,1749208239208,-440.0,0.00021917,2]
[364689432,1749208239218,-438.56760661,0.00021917,2]
[364689434,1749208239227,-535.6424669,0.00021917,2]
[364689436,1749208239236,-440.0,0.00021917,2]
[364689438,1749208239245,-252.90699191,0.00021917,2]
[364689440,1749208239254,-440.0,0.00021917,2]
[364689442,1749208239263,-324.91715835,0.00021917,2]
[364689444,1749208239273,-431.15458737,0.00021917,2]
[364689446,1749208239282,-440.0,0.00021917,2]
[364689448,1749208239291,-440.0,0.00021917,2]
[364689450,1749208239300,-440.0,0.00021917,2]
[364689452,1749208239309,-440.0,0.00021917,2]
[364689454,1749208239319,-324.5111291,0.00021917,2]
[364689456,1749208239329,-400.0,0.00021917,2]
[364689458,1749208239339,-440.0,0.00021917,2]
[364689460,1749208239348,-430.0,0.00021917,2]
[364689462,1749208239358,-403.37018878,0.00021917,2]
[364689464,1749208239367,-440.0,0.00021917,2]
[364689466,1749208239376,-440.0,0.00021917,2]
[364689468,1749208239386,-440.0,0.00021917,2]
[364689470,1749208239395,-440.0,0.00021917,2]
[364689472,1749208239406,-151.0,0.00021917,2]
[364689474,1749208239416,-151.0,0.00021917,2]
[364689476,1749208239426,-151.0,0.00021917,2]
[364689478,1749208239440,-151.0,0.00021917,2]
[364689480,1749208239450,-440.0,0.00021917,2]
[364689483,1749208239461,-440.0,0.00021917,2]